fUSD/lending_fUSD_20260506
["ID","MTS","AMOUNT","RATE_DAILY","PERIOD"]
[421723419,1778064633000,-152.0,0.00030442,7]
[421723427,1778064633000,-316.35273018,0.000318,2]
[421723424,1778064633000,-151.0,0.00031229,30]
[421723426,1778064633000,-154.0,0.00031229,30]
[421723421,1778064633000,-152.0,0.00031226,30]
[421723430,1778064633000,-502.0,0.00032093,7]
[421723429,1778064633000,-316.35273015,0.000318,2]
[421723423,1778064633000,-151.0,0.00031229,30]
[421723434,1778064633000,-151.0,0.00032229,30]
[421723447,1778064633000,-200.0,0.00033344,2]
[421723454,1778064633000,-150.0,0.00033916,2]
[421723428,1778064633000,-316.35273015,0.000318,2]
[421723458,1778064633000,-500.0,0.00033916,2]
[421723481,1778064633000,-150.0,0.00033976,2]
[421723485,1778064633000,-165.4,0.00034182,7]
[421723498,1778064633000,-604.0965,0.00034716,2]
[421723484,1778064633000,-710.49394648,0.00034135,7]
[421723493,1778064633000,-635.0,0.00034247,120]
[421723494,1778064633000,-2622.43906221,0.00034444,2]
[421723487,1778064633000,-152.0,0.00034226,30]
[421723479,1778064633000,-150.0,0.00033916,2]
[421723495,1778064633000,-5000.0,0.00034573,2]
[421723491,1778064633000,-550.0,0.00034247,120]
[421723497,1778064633000,-29964.46426333,0.00034716,2]
[421723490,1778064633000,-550.0,0.00034247,120]
[421723492,1778064633000,-550.0,0.00034247,120]
[421723486,1778064633000,-150.0,0.0003419,2]
[421723489,1778064633000,-550.0,0.00034247,120]
[421723488,1778064633000,-151.0,0.00034229,30]
[421723496,1778064633000,-1179.6,0.00034706,10]
[421723477,1778064633000,-150.0,0.00033916,2]
[421723478,1778064633000,-150.0,0.00033916,2]
[421723480,1778064633000,-500.0,0.0003394,2]
[421723461,1778064633000,-150.0,0.00033916,2]
[421723470,1778064633000,-500.0,0.00033916,2]
[421723463,1778064633000,-500.0,0.00033916,2]
[421723471,1778064633000,-500.0,0.00033916,2]
[421723472,1778064633000,-150.0,0.00033916,2]
[421723482,1778064633000,-1000.0,0.00034048,2]
[421723468,1778064633000,-500.0,0.00033916,2]
[421723462,1778064633000,-500.0,0.00033916,2]
[421723467,1778064633000,-224.78889223,0.00033916,2]
[421723464,1778064633000,-150.0,0.00033916,2]
[421723474,1778064633000,-500.0,0.00033916,2]
[421723466,1778064633000,-152.27713592,0.00033916,2]
[421723469,1778064633000,-150.0,0.00033916,2]
[421723473,1778064633000,-500.0,0.00033916,2]
[421723476,1778064633000,-150.0,0.00033916,2]
[421723483,1778064633000,-172.26,0.00034109,2]
[421723475,1778064633000,-622.68040701,0.00033916,2]
[421723465,1778064633000,-500.0,0.00033916,2]
[421723450,1778064633000,-150.0,0.00033916,2]
[421723502,1778064637000,-822.22,0.00034716,2]
[421723501,1778064637000,-380.52932165,0.00034716,2]
[421723500,1778064637000,-26061.16583257,0.00034716,2]
[421723499,1778064637000,-214.60306816,0.00034637,2]
[421723504,1778064638000,-277.41999,0.00034716,2]
[421723503,1778064638000,-2918.68033196,0.00034716,2]
[421723506,1778064638000,-1568.52,0.00034716,2]
[421723518,1778064639000,-4700.15,0.00034716,2]
[421723519,1778064640000,-260.49264898,0.00034716,2]
[421723551,1778064643000,-502.0,0.00037049,12]
[421723550,1778064643000,-209.8895384,0.00036778,2]
[421723554,1778064643000,-151.0,0.00037229,30]
[421723555,1778064643000,-925.0,0.00037243,2]
[421723553,1778064643000,-189.47926864,0.000372,120]
[421723556,1778064643000,-624.0,0.00037243,2]
[421723552,1778064643000,-601.6428476,0.00037093,2]
[421723558,1778064643000,-3536.0,0.00037243,2]
[421723560,1778064643000,-1268.0,0.00037243,2]
[421723571,1778064643000,-150.0,0.00037694,2]
[421723564,1778064643000,-6043.0,0.00037243,2]
[421723561,1778064643000,-1221.0,0.00037243,2]
[421723567,1778064643000,-283.027154,0.00037583,21]
[421723568,1778064643000,-190.766574,0.00037583,21]
[421723563,1778064643000,-3625.0,0.00037243,2]
[421723559,1778064643000,-150.0,0.00037243,2]
[421723557,1778064643000,-1352.0,0.00037243,2]
[421723566,1778064643000,-177.513444,0.00037583,21]
[421723569,1778064643000,-251.621465,0.00037583,120]
[421723546,1778064643000,-285.0,0.00036243,2]
[421723562,1778064643000,-417.0,0.00037243,2]
[421723547,1778064643000,-2111.66171601,0.00036262,2]
[421723549,1778064643000,-2111.66171601,0.00036364,2]
[421723528,1778064643000,-2181.204,0.00034816,40]
[421723527,1778064643000,-12877.33591151,0.00034716,2]
[421723529,1778064643000,-212.973,0.00034816,40]
[421723531,1778064643000,-2000.0,0.00035121,2]
[421723530,1778064643000,-2111.66171601,0.00035078,2]
[421723535,1778064643000,-2111.66171601,0.00035509,2]
[421723537,1778064643000,-983.0,0.00035912,10]
[421723534,1778064643000,-502.0,0.00035397,11]
[421723532,1778064643000,-152.0,0.00035226,30]
[421723538,1778064643000,-15817.16365647,0.00035922,2]
[421723536,1778064643000,-150.0,0.00035899,2]
[421723533,1778064643000,-151.0,0.00035229,30]
[421723539,1778064643000,-1984.09679508,0.00035922,2]
[421723541,1778064643000,-165.4,0.00036153,30]
[421723540,1778064643000,-26366.51885305,0.00035922,2]
[421723542,1778064643000,-164.0,0.00036226,30]
[421723543,1778064643000,-151.0,0.00036229,30]
[421723544,1778064643000,-1415.52,0.00036233,10]
[421723548,1778064643000,-601.6428476,0.00036334,2]
[421723545,1778064643000,-327.38831893,0.00036243,2]
[421723572,1778064643000,-190.766575,0.00037837,21]
[421723565,1778064643000,-601.6428476,0.00037296,2]
[421723570,1778064643000,-451.0,0.000376,2]
[421723596,1778064643000,-300.0,0.00038218,2]
[421723595,1778064643000,-724.83131769,0.00038218,2]
[421723605,1778064643000,-300.0,0.00038218,2]
[421723599,1778064643000,-300.0,0.00038218,2]
[421723600,1778064643000,-300.06118393,0.00038218,2]
[421723602,1778064643000,-300.0,0.00038218,2]
[421723603,1778064643000,-300.0,0.00038218,2]
[421723601,1778064643000,-300.0,0.00038218,2]
[421723604,1778064643000,-852.7601399,0.00038218,2]
[421723597,1778064643000,-301.2859328,0.00038218,2]
[421723606,1778064643000,-1793.38851355,0.00038218,2]
[421723608,1778064643000,-343.40295571,0.00038218,2]
[421723607,1778064643000,-300.0,0.00038218,2]
[421723610,1778064643000,-1145.24599896,0.00038218,2]
[421723614,1778064643000,-310.3725982,0.00038218,2]
[421723615,1778064643000,-300.0,0.00038218,2]
[421723616,1778064643000,-463.08064867,0.00038218,2]
[421723611,1778064643000,-309.07064608,0.00038218,2]
[421723613,1778064643000,-300.0,0.00038218,2]
[421723575,1778064643000,-188.54851579,0.00037951,2]
[421723612,1778064643000,-862.96230178,0.00038218,2]
[421723598,1778064643000,-300.0,0.00038218,2]
[421723609,1778064643000,-300.0,0.00038218,2]
[421723590,1778064643000,-300.0,0.00038218,2]
[421723573,1778064643000,-283.027153,0.00037837,120]
[421723594,1778064643000,-309.13065885,0.00038218,2]
[421723574,1778064643000,-150.0,0.00037951,2]
[421723578,1778064643000,-165.4,0.00038125,30]
[421723577,1778064643000,-2298.9684,0.00038118,2]
[421723581,1778064643000,-300.0,0.00038218,2]
[421723579,1778064643000,-250.0,0.00038213,7]
[421723580,1778064643000,-300.0,0.00038218,2]
[421723583,1778064643000,-491.85958444,0.00038218,2]
[421723576,1778064643000,-203.0,0.00038029,2]
[421723593,1778064643000,-891.9241332,0.00038218,2]
[421723584,1778064643000,-300.0,0.00038218,2]
[421723586,1778064643000,-300.0,0.00038218,2]
[421723588,1778064643000,-300.0,0.00038218,2]
[421723587,1778064643000,-603.45144378,0.00038218,2]
[421723589,1778064643000,-300.0,0.00038218,2]
[421723585,1778064643000,-300.0,0.00038218,2]
[421723582,1778064643000,-300.0,0.00038218,2]
[421723592,1778064643000,-1065.13491717,0.00038218,2]
[421723591,1778064643000,-526.86051061,0.00038218,2]
[421723652,1778064644000,-300.0,0.00038218,2]
[421723649,1778064644000,-309.13065885,0.00038218,2]
[421723660,1778064644000,-1793.38851355,0.00038218,2]
[421723650,1778064644000,-724.83131769,0.00038218,2]
[421723651,1778064644000,-301.2859328,0.00038218,2]
[421723641,1778064644000,-300.0,0.00038218,2]
[421723644,1778064644000,-300.0,0.00038218,2]
[421723642,1778064644000,-603.45144378,0.00038218,2]
[421723639,1778064644000,-300.0,0.00038218,2]
[421723659,1778064644000,-300.0,0.00038218,2]
[421723648,1778064644000,-891.9241332,0.00038218,2]
[421723661,1778064644000,-300.0,0.00038218,2]
[421723666,1778064644000,-862.96230178,0.00038218,2]
[421723657,1778064644000,-300.0,0.00038218,2]
[421723653,1778064644000,-300.0,0.00038218,2]
[421723656,1778064644000,-300.0,0.00038218,2]
[421723658,1778064644000,-852.7601399,0.00038218,2]
[421723654,1778064644000,-300.06118393,0.00038218,2]
[421723662,1778064644000,-343.40295571,0.00038218,2]
[421723664,1778064644000,-1145.24599896,0.00038218,2]
[421723665,1778064644000,-309.07064608,0.00038218,2]
[421723663,1778064644000,-300.0,0.00038218,2]
[421723667,1778064644000,-310.3725982,0.00038218,2]
[421723673,1778064644000,-300.0,0.00038218,2]
[421723655,1778064644000,-300.0,0.00038218,2]
[421723637,1778064644000,-491.85958444,0.00038218,2]
[421723628,1778064644000,-300.0,0.00038218,2]
[421723638,1778064644000,-300.0,0.00038218,2]
[421723674,1778064644000,-300.0,0.00038218,2]
[421723619,1778064644000,-451.13853711,0.00038218,2]
[421723618,1778064644000,-481.18706949,0.00038218,2]
[421723617,1778064644000,-300.0,0.00038218,2]
[421723620,1778064644000,-300.0,0.00038218,2]
[421723622,1778064644000,-300.0,0.00038218,2]
[421723631,1778064644000,-300.0,0.00038218,2]
[421723624,1778064644000,-454.64647603,0.00038218,2]
[421723623,1778064644000,-423.08987827,0.00038218,2]
[421723627,1778064644000,-309.32134718,0.00038218,2]
[421723633,1778064644000,-300.0,0.00038218,2]
[421723640,1778064644000,-300.0,0.00038218,2]
[421723625,1778064644000,-300.0,0.00038218,2]
[421723630,1778064644000,-1092.83356842,0.00038218,2]
[421723626,1778064644000,-483.27319916,0.00038218,2]
[421723629,1778064644000,-300.0,0.00038218,2]
[421723632,1778064644000,-300.0,0.00038218,2]
[421723635,1778064644000,-300.0,0.00038218,2]
[421723645,1778064644000,-300.0,0.00038218,2]
[421723646,1778064644000,-526.86051061,0.00038218,2]
[421723647,1778064644000,-1065.13491717,0.00038218,2]
[421723634,1778064644000,-300.0,0.00038218,2]
[421723636,1778064644000,-300.0,0.00038218,2]
[421723643,1778064644000,-300.0,0.00038218,2]
[421723621,1778064644000,-300.0,0.00038218,2]
[421723669,1778064644000,-463.08064867,0.00038218,2]
[421723698,1778064644000,-357.0,0.00038338,30]
[421723670,1778064644000,-300.0,0.00038218,2]
[421723703,1778064644000,-565.66301357,0.00038349,15]
[421723708,1778064644000,-500.0,0.00038701,2]
[421723704,1778064644000,-549.4928,0.00038351,2]
[421723705,1778064644000,-2244.9684,0.00038351,2]
[421723702,1778064644000,-425.01273819,0.00038349,15]
[421723707,1778064644000,-502.0,0.00038701,14]
[421723712,1778064644000,-794.17748751,0.00038836,2]
[421723713,1778064644000,-181.1095428,0.00039,5]
[421723711,1778064644000,-305.62608806,0.00038817,2]
[421723709,1778064644000,-9776.20158928,0.00038703,2]
[421723710,1778064644000,-2244.9684,0.00038735,2]
[421723715,1778064644000,-305.62608806,0.000391,2]
[421723714,1778064644000,-20140.96919409,0.00039,120]
[421723716,1778064644000,-2244.9684,0.00039118,2]
[421723717,1778064644000,-526.44908795,0.00039232,2]
[421723719,1778064644000,-305.62608806,0.00039383,2]
[421723718,1778064644000,-549.4928,0.0003931,2]
[421723720,1778064644000,-155.0,0.00039397,2]
[421723722,1778064644000,-679.0,0.000394,5]
[421723721,1778064644000,-500.0,0.00039397,30]
[421723724,1778064644000,-1130.07359692,0.000394,7]
[421723723,1778064644000,-889.395116,0.000394,120]
[421723725,1778064644000,-52.22196561,0.000394,7]
[421723701,1778064644000,-500.0,0.00038349,15]
[421723697,1778064644000,-469.0,0.00038338,30]
[421723706,1778064644000,-305.62608806,0.00038533,2]
[421723694,1778064644000,-794.17748755,0.0003825,2]
[421723672,1778064644000,-451.13853711,0.00038218,2]
[421723668,1778064644000,-300.0,0.00038218,2]
[421723675,1778064644000,-300.0,0.00038218,2]
[421723676,1778064644000,-300.0,0.00038218,2]
[421723687,1778064644000,-300.0,0.00038218,2]
[421723677,1778064644000,-483.27319916,0.00038218,2]
[421723696,1778064644000,-519.0,0.00038338,30]
[421723680,1778064644000,-300.0,0.00038218,2]
[421723681,1778064644000,-1092.83356842,0.00038218,2]
[421723678,1778064644000,-309.32134718,0.00038218,2]
[421723684,1778064644000,-300.0,0.00038218,2]
[421723685,1778064644000,-300.0,0.00038218,2]
[421723686,1778064644000,-300.0,0.00038218,2]
[421723682,1778064644000,-300.0,0.00038218,2]
[421723679,1778064644000,-300.0,0.00038218,2]
[421723693,1778064644000,-1890.15932648,0.00038224,2]
[421723699,1778064644000,-160.1,0.0003834,2]
[421723691,1778064644000,-300.0,0.00038218,2]
[421723692,1778064644000,-516.94609672,0.00038224,2]
[421723695,1778064644000,-305.62608808,0.0003825,2]
[421723671,1778064644000,-481.18706949,0.00038218,2]
[421723700,1778064644000,-500.0,0.00038349,15]
[421723690,1778064644000,-327.24367179,0.00038218,2]
[421723688,1778064644000,-300.0,0.00038218,2]
[421723689,1778064644000,-491.85958444,0.00038218,2]
[421723683,1778064644000,-300.0,0.00038218,2]
[421723745,1778064645000,-200.0,0.000394,120]
[421723743,1778064645000,-200.0,0.000394,120]
[421723748,1778064645000,-200.0,0.000394,120]
[421723736,1778064645000,-845.36104845,0.000394,7]
[421723739,1778064645000,-200.0,0.000394,120]
[421723734,1778064645000,-712.0,0.000391,30]
[421723737,1778064645000,-758.32548851,0.000394,7]
[421723750,1778064645000,-200.0,0.000394,120]
[421723733,1778064645000,-1171.0,0.000391,30]
[421723738,1778064645000,-214.60306816,0.000394,7]
[421723731,1778064645000,-300.0,0.00038218,2]
[421723735,1778064645000,-22003.01790151,0.000394,7]
[421723732,1778064645000,-476.0,0.000391,30]
[421723746,1778064645000,-200.0,0.000394,120]
[421723744,1778064645000,-200.0,0.000394,120]
[421723751,1778064645000,-200.0,0.000394,120]
[421723753,1778064645000,-200.0,0.000394,120]
[421723756,1778064645000,-200.0,0.000394,120]
[421723754,1778064645000,-200.0,0.000394,120]
[421723757,1778064645000,-200.0,0.000394,120]
[421723755,1778064645000,-200.0,0.000394,120]
[421723758,1778064645000,-200.0,0.000394,120]
[421723747,1778064645000,-200.0,0.000394,120]
[421723742,1778064645000,-200.0,0.000394,120]
[421723741,1778064645000,-200.0,0.000394,120]
[421723749,1778064645000,-200.0,0.000394,120]
[421723752,1778064645000,-200.0,0.000394,120]
[421723740,1778064645000,-200.0,0.000394,120]
[421723797,1778064646000,-454.80826126,0.00039897,2]
[421723793,1778064646000,-310.0,0.00039863,66]
[421723792,1778064646000,-800.0,0.000398,14]
[421723790,1778064646000,-8039.8478437,0.00039768,2]
[421723788,1778064646000,-163.0,0.00039726,120]
[421723799,1778064646000,-1298.04171,0.00039897,119]
[421723789,1778064646000,-42570.969831,0.00039768,2]
[421723783,1778064646000,-267.45,0.00039637,63]
[421723796,1778064646000,-2244.9684,0.00039885,2]
[421723791,1778064646000,-25444.4052263,0.00039768,2]
[421723794,1778064646000,-350.0,0.00039868,2]
[421723800,1778064646000,-1298.0417,0.00039897,119]
[421723795,1778064646000,-161.0,0.0003988,120]
[421723802,1778064646000,-377.65200136,0.00039899,24]
[421723807,1778064646000,-151.0,0.00039899,24]
[421723810,1778064646000,-151.0,0.00039899,24]
[421723786,1778064646000,-600.0,0.000397,14]
[421723812,1778064646000,-151.0,0.00039899,24]
[421723801,1778064646000,-621.78829552,0.00039899,24]
[421723813,1778064646000,-151.0,0.00039899,24]
[421723809,1778064646000,-151.0,0.00039899,24]
[421723804,1778064646000,-151.0,0.00039899,24]
[421723806,1778064646000,-151.0,0.00039899,24]
[421723798,1778064646000,-151.0,0.00039897,2]
[421723784,1778064646000,-305.62608806,0.00039667,2]
[421723779,1778064646000,-1037.7828,0.00039612,30]
[421723782,1778064646000,-250.0,0.00039637,63]
[421723763,1778064646000,-200.0,0.000394,120]
[421723760,1778064646000,-200.0,0.000394,120]
[421723759,1778064646000,-200.0,0.000394,120]
[421723761,1778064646000,-200.0,0.000394,120]
[421723762,1778064646000,-200.0,0.000394,120]
[421723765,1778064646000,-305.665592,0.000394,120]
[421723775,1778064646000,-350.0,0.00039513,2]
[421723766,1778064646000,-794.17748751,0.00039422,2]
[421723764,1778064646000,-200.0,0.000394,120]
[421723768,1778064646000,-1298.0417,0.000395,114]
[421723767,1778064646000,-1298.0417,0.000395,114]
[421723772,1778064646000,-2244.9684,0.00039502,2]
[421723769,1778064646000,-1298.0417,0.000395,114]
[421723770,1778064646000,-1298.0417,0.000395,114]
[421723773,1778064646000,-157.0,0.00039507,2]
[421723771,1778064646000,-200.0,0.000395,14]
[421723774,1778064646000,-2000.0,0.00039511,2]
[421723776,1778064646000,-150.0,0.00039579,2]
[421723778,1778064646000,-400.0,0.000396,14]
[421723777,1778064646000,-248.53900925,0.00039598,2]
[421723780,1778064646000,-1210.9849,0.00039625,30]
[421723787,1778064646000,-1518.20861485,0.00039724,7]
[421723781,1778064646000,-250.0,0.00039637,63]
[421723785,1778064646000,-5000.0,0.00039668,2]
[421723816,1778064646000,-151.0,0.00039899,24]
[421723830,1778064646000,-151.0,0.00039899,24]
[421723818,1778064646000,-151.0,0.00039899,24]
[421723844,1778064646000,-1000.0,0.000399,14]
[421723850,1778064646000,-846.0,0.00039916,5]
[421723846,1778064646000,-296.60440981,0.000399,2]
[421723848,1778064646000,-758.93885212,0.000399,2]
[421723853,1778064646000,-250.0,0.0003997,68]
[421723854,1778064646000,-500.0,0.00039973,5]
[421723856,1778064646000,-160.1,0.0003999,2]
[421723860,1778064646000,-300.0,0.00039999,10]
[421723859,1778064646000,-300.0,0.00039999,10]
[421723867,1778064646000,-4489.64900388,0.0004,120]
[421723857,1778064646000,-160.1,0.0003999,2]
[421723858,1778064646000,-291.87508444,0.0003999,7]
[421723861,1778064646000,-666.0,0.00039999,30]
[421723864,1778064646000,-50000.0,0.0004,55]
[421723862,1778064646000,-3646.09057343,0.00039999,120]
[421723866,1778064646000,-41068.37875649,0.0004,120]
[421723863,1778064646000,-150.0,0.00039999,120]
[421723865,1778064646000,-200.0,0.0004,30]
[421723869,1778064646000,-3802.74018021,0.0004,120]
[421723868,1778064646000,-305.62608806,0.0003995,15]
[421723870,1778064646000,-260.63,0.0004,120]
[421723871,1778064646000,-1600.0,0.0004,120]
[421723814,1778064646000,-151.0,0.00039899,24]
[421723849,1778064646000,-190.12196257,0.000399,8]
[421723851,1778064646000,-152.0,0.00039917,11]
[421723852,1778064646000,-350.0,0.00039937,2]
[421723855,1778064646000,-160.1,0.0003999,2]
[421723820,1778064646000,-152.15955082,0.00039899,24]
[421723822,1778064646000,-151.0,0.00039899,24]
[421723823,1778064646000,-151.0,0.00039899,24]
[421723821,1778064646000,-151.0,0.00039899,24]
[421723827,1778064646000,-151.0,0.00039899,24]
[421723826,1778064646000,-151.0,0.00039899,24]
[421723824,1778064646000,-151.0,0.00039899,24]
[421723828,1778064646000,-151.0,0.00039899,24]
[421723847,1778064646000,-6170.98794898,0.000399,2]
[421723829,1778064646000,-151.0,0.00039899,24]
[421723834,1778064646000,-181.08010149,0.00039899,24]
[421723832,1778064646000,-168.91890074,0.00039899,24]
[421723831,1778064646000,-151.0,0.00039899,24]
[421723833,1778064646000,-174.61919141,0.00039899,24]
[421723839,1778064646000,-332.89536272,0.00039899,24]
[421723842,1778064646000,-160.0,0.000399,120]
[421723836,1778064646000,-194.72792766,0.00039899,24]
[421723835,1778064646000,-187.78006525,0.00039899,24]
[421723838,1778064646000,-209.40437684,0.00039899,24]
[421723841,1778064646000,-67860.52019939,0.000399,120]
[421723843,1778064646000,-160.0,0.000399,72]
[421723837,1778064646000,-201.93286099,0.00039899,24]
[421723840,1778064646000,-51683.31671447,0.000399,120]
[421723845,1778064646000,-193.155,0.000399,41]
[421723872,1778064861000,3275.16,0.0003013,120]
[421723873,1778065294000,2552.36504526,0.000114,2]
[421723874,1778065356000,583.77426698,0.00011,2]
[421723879,1778065482000,10000.01,0.00012,2]
[421723877,1778065482000,10000.01,0.00012,2]
[421723878,1778065482000,10000.01,0.00012,2]
[421723876,1778065482000,6193.07410876,0.00012,2]
[421723880,1778065482000,10000.01,0.00012,2]
[421723886,1778065482000,189785.49569004,0.00012,2]
[421723882,1778065482000,10000.01,0.00012,2]
[421723883,1778065482000,10000.01,0.00012,2]
[421723881,1778065482000,10000.01,0.00012,2]
[421723885,1778065482000,10000.01,0.00012,2]
[421723884,1778065482000,10000.01,0.00012,2]
[421723888,1778065753000,-189.0,0.0002,2]
[421723891,1778065753000,-1144.31454373,0.0002,2]
[421723890,1778065753000,-191.78624056,0.0002,2]
[421723889,1778065753000,-158.0,0.0002,2]
[421723893,1778065753000,-151.0,0.00020381,2]
[421723894,1778065753000,-406.0,0.00020395,2]
[421723895,1778065753000,-208.71188682,0.00020531,2]
[421723892,1778065753000,-250.0,0.00020197,2]
[421723897,1778065816000,170.71,0.00027779,120]
[421723926,1778065832000,-406.0,0.00022407,2]
[421723927,1778065832000,-401.0,0.00022407,2]
[421723918,1778065832000,-150.99,0.00022353,2]
[421723928,1778065832000,-413.0,0.00022407,2]
[421723929,1778065832000,-400.0,0.00022431,2]
[421723930,1778065832000,-405.0,0.00022465,2]
[421723936,1778065832000,-214.60306816,0.00023606,2]
[421723937,1778065832000,-189.0,0.00024,2]
[421723932,1778065832000,-407.0,0.00022747,2]
[421723931,1778065832000,-413.0,0.00022547,2]
[421723935,1778065832000,-410.0,0.00023227,2]
[421723933,1778065832000,-189.0,0.00023,2]
[421723920,1778065832000,-264.4,0.00022407,2]
[421723939,1778065832000,-400.0,0.00024141,2]
[421723945,1778065832000,-410.0,0.00024174,2]
[421723938,1778065832000,-399.0,0.0002414,2]
[421723934,1778065832000,-768.16583474,0.00023,2]
[421723923,1778065832000,-399.0,0.00022407,2]
[421723913,1778065832000,-189.0,0.00022,2]
[421723922,1778065832000,-399.0,0.00022407,2]
[421723940,1778065832000,-401.0,0.00024145,2]
[421723903,1778065832000,-41.28811318,0.00020531,2]
[421723904,1778065832000,-412.0,0.00020576,2]
[421723905,1778065832000,-191.78624056,0.00020842,2]
[421723909,1778065832000,-158.0,0.00021,2]
[421723907,1778065832000,-327.87280249,0.00020842,2]
[421723908,1778065832000,-189.0,0.00021,2]
[421723906,1778065832000,-81.12719751,0.00020842,2]
[421723910,1778065832000,-300.0,0.00021272,2]
[421723911,1778065832000,-488.47063865,0.00021273,2]
[421723914,1778065832000,-164.0,0.00022,2]
[421723925,1778065832000,-410.0,0.00022407,2]
[421723924,1778065832000,-402.0,0.00022407,2]
[421723916,1778065832000,-2166.31101801,0.00022,2]
[421723915,1778065832000,-250.0,0.00022,2]
[421723917,1778065832000,-151.0,0.00022353,2]
[421723921,1778065832000,-266.19113882,0.00022407,2]
[421723919,1778065832000,-191.78624056,0.00022406,2]
[421723943,1778065832000,-404.0,0.00024174,2]
[421723912,1778065832000,-1054.21936135,0.00021273,2]
[421723947,1778065832000,-500.0,0.00024236,2]
[421723971,1778065832000,-1000.0,0.000278,7]
[421723974,1778065832000,-200.0,0.00028243,2]
[421723963,1778065832000,-404.0,0.00026942,2]
[421723966,1778065832000,-155.77,0.00027397,2]
[421723976,1778065832000,-5000.0,0.0002836,2]
[421723977,1778065832000,-500.0,0.00028404,2]
[421723975,1778065832000,-151.0,0.00028267,2]
[421723964,1778065832000,-501.0,0.00027137,2]
[421723969,1778065832000,-200.0,0.00027797,2]
[421723979,1778065832000,-501.0,0.0002896,4]
[421723978,1778065832000,-172.26,0.00028582,2]
[421723985,1778065832000,-170.24,0.00029465,7]
[421723982,1778065832000,-170.24,0.00029465,7]
[421723981,1778065832000,-170.24,0.00029465,2]
[421723983,1778065832000,-170.24,0.00029465,30]
[421723984,1778065832000,-170.24,0.00029465,2]
[421723946,1778065832000,-402.0,0.00024174,2]
[421723965,1778065832000,-501.0,0.00027137,2]
[421723967,1778065832000,-1500.0,0.00027397,2]
[421723980,1778065832000,-508.56793747,0.00029,2]
[421723961,1778065832000,-151.0,0.00026296,2]
[421723942,1778065832000,-409.0,0.00024174,2]
[421723972,1778065832000,-1000.0,0.00028161,2]
[421723948,1778065832000,-151.0,0.00024324,2]
[421723944,1778065832000,-401.0,0.00024174,2]
[421723949,1778065832000,-156.46,0.00024658,2]
[421723950,1778065832000,-155.83,0.00024658,2]
[421723954,1778065832000,-398.0,0.00025017,2]
[421723953,1778065832000,-196.0,0.00025,2]
[421723941,1778065832000,-409.0,0.00024152,2]
[421723957,1778065832000,-413.0,0.00025205,2]
[421723952,1778065832000,-159.40412219,0.00025,2]
[421723951,1778065832000,-162.5,0.00024658,2]
[421723955,1778065832000,-401.0,0.00025083,2]
[421723962,1778065832000,-204.16,0.0002638,2]
[421723956,1778065832000,-162.5,0.00025205,7]
[421723960,1778065832000,-1542.69,0.00025786,2]
[421723958,1778065832000,-401.0,0.00025565,2]
[421723959,1778065832000,-162.5,0.00025753,30]
[421724028,1778065833000,-4839.0,0.000321,5]
[421724023,1778065833000,-1011.15295388,0.00032,120]
[421724025,1778065833000,-172.10790415,0.00032,120]
[421724018,1778065833000,-154.36955594,0.00031226,30]